bitfinex/quotes_BTCUSD_20250902
["timestamp","ask_amount","ask_price","bid_price","bid_amount"]
[1756818046031,0.0205539,109040.0,109030.0,0.35617575]
[1756818046243,0.00360354,109040.0,109030.0,0.42669575]
[1756818046451,0.00360354,109040.0,109030.0,0.51861174]
[1756818047032,0.0243133,109070.0,109060.0,0.18338529]
[1756818047232,0.0243133,109070.0,109060.0,0.1674]
[1756818047233,0.76675304,109070.0,109060.0,0.1674]
[1756818047441,0.74978898,109070.0,109060.0,0.1674]
[1756818047644,0.74978898,109070.0,109060.0,0.35078529]
[1756818047837,0.56641954,109070.0,109060.0,0.35078529]
[1756818048144,0.74978801,109070.0,109060.0,0.35078529]
[1756818048499,0.01954172,109070.0,109060.0,0.35078529]
[1756818048625,0.20291019,109070.0,109060.0,0.35074529]
[1756818048825,0.20291019,109070.0,109060.0,0.35274529]
[1756818049241,0.01954172,109070.0,109060.0,0.35274529]
[1756818049444,0.01954172,109070.0,109060.0,0.35374529]
[1756818049669,0.18336847,109070.0,109060.0,0.003]
[1756818049838,0.74978801,109070.0,109060.0,0.17036]
[1756818050046,0.7561518,109070.0,109060.0,0.17036]
[1756818050471,0.20927398,109070.0,109060.0,0.35374529]
[1756818050710,0.20927398,109070.0,109060.0,0.17036]
[1756818050914,0.7561518,109070.0,109060.0,0.003]
[1756818051126,0.74978801,109070.0,109060.0,0.0009]
[1756818051326,0.88935112,109070.0,109060.0,0.0009]
[1756818051500,0.18338529,109060.0,109050.0,0.35075765]
[1756818051702,0.56641954,109060.0,109050.0,0.35075765]
[1756818051906,0.01954172,109060.0,109050.0,0.35605765]
[1756818052074,0.20292701,109060.0,109050.0,0.35605765]
[1756818052274,0.01954172,109060.0,109050.0,0.35605765]
[1756818052498,0.18338529,109060.0,109050.0,0.3560621]
[1756818052703,0.01954172,109060.0,109050.0,0.3570621]
[1756818052902,0.0243133,109070.0,109060.0,0.18338529]
[1756818053101,0.20928328,109070.0,109060.0,0.18868529]
[1756818053616,0.02591481,109070.0,109060.0,0.18868529]
[1756818053860,0.20928328,109070.0,109050.0,0.3537621]
[1756818054066,0.73026311,109060.0,109050.0,0.00624]
[1756818054256,0.2029364,109060.0,109050.0,0.17356]
[1756818054570,0.01955111,109060.0,109050.0,0.3570221]
[1756818055164,0.22723288,109070.0,109050.0,0.3560221]
[1756818055419,0.79745074,109070.0,109050.0,0.3560221]
[1756818055685,0.36731016,109070.0,109060.0,0.18662529]
[1756818055905,0.18338529,109060.0,109050.0,0.00524]
[1756818056108,0.18338529,109060.0,109050.0,0.3539221]
[1756818056298,0.73024629,109070.0,109060.0,0.18338529]
[1756818056513,0.73873462,109070.0,109060.0,0.18338529]
[1756818056889,0.73873462,109070.0,109050.0,0.3539221]
[1756818057084,0.1918568,109070.0,109060.0,0.18868529]
[1756818057880,0.73873462,109070.0,109040.0,0.19582921]
[1756818058074,0.18338529,109060.0,109050.0,0.3506421]
[1756818058277,0.18338529,109060.0,109050.0,0.3538821]
[1756818058472,0.18338529,109060.0,109050.0,0.3589421]
[1756818058681,0.18336847,109070.0,109050.0,0.17554]
[1756818058945,0.73873815,109070.0,109060.0,0.18662529]
[1756818059178,0.73873815,109070.0,109060.0,0.0053]
[1756818059332,0.53186033,109070.0,109060.0,0.0053]
[1756818059529,0.53186033,109070.0,109060.0,0.00324]
[1756818059731,1.07873815,109070.0,109060.0,0.17254]
[1756818059931,1.07873815,109070.0,109060.0,0.0053]
[1756818060113,1.07873815,109070.0,109060.0,0.17048]
[1756818060313,1.07873815,109070.0,109060.0,0.17254]
[1756818060910,0.53186033,109070.0,109060.0,0.17254]
[1756818061116,0.34849186,109070.0,109060.0,0.35592529]
[1756818061340,0.00849186,109070.0,109060.0,0.35592529]
[1756818062406,0.21090835,109090.0,109070.0,0.18336055]
[1756818062622,0.19230508,109090.0,109080.0,0.1725]
[1756818062844,0.53230508,109090.0,109080.0,0.35585166]
[1756818063082,0.00896723,109090.0,109080.0,0.35585166]
[1756818063329,0.19230209,109090.0,109080.0,0.35581166]
[1756818063570,0.19230209,109090.0,109080.0,0.17246]
[1756818063793,0.53230209,109090.0,109080.0,0.35581166]
[1756818064020,0.53230209,109090.0,109080.0,0.0053]
[1756818064239,0.52380615,109090.0,109080.0,0.0053]
[1756818064455,0.52380615,109090.0,109080.0,0.16716]
[1756818064670,0.18335166,109080.0,109070.0,0.18660055]
[1756818064893,0.18335166,109080.0,109060.0,0.35499054]
[1756818064894,0.18336847,109070.0,109060.0,0.07052]
[1756818065128,0.73024629,109070.0,109060.0,0.4263621]
[1756818065745,0.18335166,109080.0,109060.0,0.4263621]
[1756818065966,0.54687782,109070.0,109060.0,0.4231221]
[1756818066220,1.07022948,109080.0,109070.0,0.18960847]
[1756818066517,1.07022948,109080.0,109070.0,0.17012]
[1756818066725,1.07022948,109080.0,109070.0,0.35348847]
[1756818066976,1.07022948,109080.0,109070.0,0.35578847]
[1756818067433,0.18336847,109070.0,109060.0,0.25590529]
[1756818067664,0.73024629,109070.0,109060.0,0.47317288]
[1756818068363,0.54687782,109070.0,109060.0,0.47317288]
[1756818068580,0.54687782,109070.0,109060.0,0.46787288]
[1756818068838,0.18338995,109060.0,109050.0,0.18663872]
[1756818069090,0.73026777,109060.0,109050.0,0.3537221]
[1756818069308,0.73026777,109060.0,109050.0,0.3557021]
[1756818069541,0.34,109050.0,109030.0,0.00294]
[1756818069782,0.34,109040.0,109010.0,0.30943625]
[1756818070013,0.80587381,109050.0,109030.0,0.1854077]
[1756818070270,0.35958104,109050.0,109040.0,0.35279165]
[1756818070495,1.11744239,109050.0,109040.0,0.172]
[1756818070734,0.35958394,109050.0,109040.0,0.35541892]
[1756818071008,0.34,109050.0,109040.0,0.35541892]
[1756818071244,0.35961689,109070.0,109050.0,0.1834021]
[1756818071496,0.7297504,109060.0,109050.0,0.00294]
[1756818071725,0.74933679,109060.0,109050.0,0.18863462]
[1756818071952,0.7297504,109060.0,109050.0,0.1883221]
[1756818072177,0.1834021,109050.0,109040.0,0.35343892]
[1756818072395,0.44088581,109050.0,109040.0,0.35343892]
[1756818072618,0.44088581,109050.0,109040.0,0.35541892]
[1756818072865,0.18338529,109060.0,109050.0,0.18339014]
[1756818073091,0.64386852,109060.0,109050.0,0.18831014]
[1756818073574,0.46048323,109060.0,109050.0,0.18831014]
[1756818073805,0.44088581,109060.0,109050.0,0.18831014]
[1756818074271,0.66324757,109080.0,109070.0,0.18336847]
[1756818074272,0.62423862,109080.0,109070.0,0.18336847]
[1756818074506,0.46062932,109080.0,109070.0,0.35532847]
[1756818074764,0.64398098,109080.0,109070.0,0.35532847]
[1756818075445,0.62437877,109080.0,109070.0,0.35040847]
[1756818075662,0.62437877,109080.0,109070.0,0.35432847]
[1756818075882,0.0001413,109080.0,109070.0,0.35432847]
[1756818076117,0.0001413,109080.0,109070.0,0.35332847]
[1756818076583,0.0001413,109080.0,109070.0,0.35432847]
[1756818076992,0.0001413,109080.0,109070.0,0.35632847]
[1756818077451,0.0001413,109080.0,109070.0,0.35828847]
[1756818077688,0.44102711,109080.0,109070.0,0.35336847]
[1756818077947,0.0001413,109080.0,109070.0,0.35828847]
[1756818078172,0.62437877,109080.0,109070.0,0.35828847]
[1756818078398,0.62437877,109080.0,109070.0,0.35336847]
[1756818079120,0.62437877,109080.0,109070.0,0.35828847]
[1756818079792,0.62437877,109080.0,109070.0,0.35630847]
[1756818080018,0.44102711,109080.0,109070.0,0.35828847]
[1756818081130,0.0001413,109080.0,109070.0,0.35828847]
[1756818081761,0.0001413,109080.0,109070.0,0.45020446]
[1756818085753,0.0001413,109080.0,109070.0,0.89109027]
[1756818085968,0.0001413,109080.0,109070.0,0.91202909]
[1756818086189,2.6511387,109100.0,109090.0,0.18333486]
[1756818086392,2.65160961,109100.0,109090.0,0.95845666]
[1756818086809,2.65160961,109100.0,109090.0,0.53850967]
[1756818087017,2.65160961,109100.0,109090.0,0.97939548]
[1756818087219,2.65160961,109100.0,109090.0,0.85281607]
[1756818087423,2.65160961,109100.0,109090.0,0.57881026]
[1756818087834,2.65160961,109100.0,109090.0,0.58381026]
[1756818088035,2.65160961,109100.0,109090.0,0.41693026]
[1756818088249,2.65160961,109100.0,109090.0,0.52253085]
[1756818088944,2.65160961,109100.0,109090.0,0.52553085]
[1756818089359,2.65160961,109100.0,109090.0,0.35869085]
[1756818089564,2.65160961,109100.0,109090.0,0.52553085]
[1756818090222,2.65160961,109100.0,109090.0,0.35369085]
[1756818090426,2.65160961,109100.0,109090.0,0.51749085]
[1756818090634,2.65160961,109100.0,109090.0,0.51949085]
[1756818090838,2.65160961,109100.0,109090.0,0.52149085]
[1756818090971,2.65160961,109100.0,109090.0,0.51949085]
[1756818091393,2.65160961,109100.0,109090.0,0.52249085]
[1756818091588,2.65160961,109100.0,109090.0,0.35077085]
[1756818091840,2.65160961,109100.0,109090.0,0.51757085]
[1756818092057,2.65160961,109100.0,109090.0,0.57259752]
[1756818092209,3.09249542,109100.0,109090.0,0.34877085]
[1756818092424,2.65160961,109100.0,109090.0,0.51851085]
[1756818092632,2.65160961,109100.0,109090.0,0.52349085]
[1756818093109,2.65156961,109100.0,109090.0,0.52349085]
[1756818093331,2.65156961,109100.0,109090.0,0.52049085]
[1756818093772,2.65156961,109100.0,109090.0,0.51749085]
[1756818094242,2.65156961,109100.0,109090.0,0.52149085]
[1756818094500,3.61577347,109100.0,109090.0,0.07452]
[1756818094751,3.43245542,109100.0,109090.0,0.42461486]
[1756818094975,3.61577347,109100.0,109090.0,0.42461486]
[1756818095199,3.43245542,109100.0,109090.0,0.42659486]
[1756818095436,2.99156961,109100.0,109090.0,0.42953486]
[1756818095697,2.99156961,109100.0,109090.0,0.51945085]
[1756818095957,3.79819946,109100.0,109090.0,0.002]
[1756818096181,3.79819946,109100.0,109080.0,0.16676]
[1756818096182,0.52334995,109090.0,109080.0,0.16676]
[1756818096381,0.52334995,109090.0,109070.0,0.35012847]
[1756818096382,0.52335166,109080.0,109070.0,0.35012847]
[1756818096875,0.52335166,109080.0,109070.0,0.16676]
[1756818097105,0.52336847,109070.0,109060.0,0.07052]
[1756818097382,0.96425428,109070.0,109060.0,0.23724]
[1756818097608,0.78088581,109070.0,109060.0,0.42767729]
[1756818097821,0.96425428,109070.0,109060.0,0.244292]
[1756818098048,0.96425428,109070.0,109060.0,0.42062529]
[1756818098273,0.78088581,109070.0,109060.0,0.42062529]
[1756818098750,0.34,109070.0,109060.0,0.42062529]
[1756818098949,0.62423747,109080.0,109070.0,0.18336847]
[1756818099161,0.34,109070.0,109060.0,0.42356529]
[1756818099373,0.78088581,109070.0,109060.0,0.42262529]
[1756818099611,0.78088581,109070.0,109060.0,0.42765529]
[1756818099822,0.96425428,109070.0,109060.0,0.24219]
[1756818100002,0.96425428,109070.0,109060.0,0.42062529]
[1756818100204,0.78088581,109070.0,109060.0,0.42062529]
[1756818100797,0.34,109070.0,109060.0,0.42162529]
[1756818101015,0.78088581,109070.0,109060.0,0.42162529]
[1756818101279,0.78088581,109070.0,109060.0,0.35110529]
[1756818101465,1.22289027,109070.0,109060.0,0.001]
[1756818101670,1.41919091,109070.0,109060.0,0.001]
[1756818101874,1.41915091,109070.0,109060.0,0.001]
[1756818102034,1.30771027,109070.0,109060.0,0.001]
[1756818102634,1.30771027,109070.0,109060.0,0.002]
[1756818102879,1.32723537,109070.0,109060.0,0.002]
[1756818103083,0.18338529,109060.0,109050.0,0.18340133]
[1756818103283,0.34,109050.0,109040.0,0.35304892]
[1756818103504,0.78088581,109050.0,109040.0,0.35512892]
[1756818104305,0.78088581,109050.0,109040.0,0.35527022]
[1756818104823,0.34,109050.0,109040.0,0.35527022]
[1756818105185,0.34,109050.0,109040.0,0.35727022]
[1756818105793,0.44088581,109060.0,109050.0,0.18338599]
[1756818105998,0.6242711,109060.0,109050.0,0.18338599]
[1756818106197,0.70931288,109070.0,109050.0,0.18338599]
[1756818106401,0.78196446,109070.0,109050.0,0.18841599]
[1756818106612,0.6242711,109060.0,109050.0,0.18338599]
[1756818106789,0.6242711,109060.0,109050.0,0.18841599]
[1756818106998,0.6242711,109060.0,109050.0,0.18338599]
[1756818107204,0.78196446,109070.0,109050.0,0.18841599]
[1756818107417,0.34,109050.0,109040.0,0.0021413]
[1756818107630,0.78088581,109050.0,109040.0,0.35220022]
[1756818107842,0.34,109050.0,109040.0,0.35220022]
[1756818108046,0.78088581,109050.0,109040.0,0.35016022]
[1756818108251,0.78088581,109050.0,109040.0,0.35012022]
[1756818108252,0.34,109050.0,109040.0,0.35012022]
[1756818108454,0.78088581,109050.0,109040.0,0.35012022]
[1756818108656,0.5328018,109060.0,109050.0,0.1834021]
[1756818108904,0.9642711,109060.0,109050.0,0.1834021]
[1756818109133,0.78088581,109060.0,109050.0,0.1834021]
[1756818109333,0.34,109060.0,109050.0,0.1884321]
[1756818109544,0.78088581,109060.0,109050.0,0.1884321]
[1756818109755,0.01051794,109080.0,109070.0,0.18336847]
[1756818109756,0.45140375,109080.0,109070.0,0.18336847]
[1756818109969,0.44088581,109080.0,109070.0,0.35000847]
[1756818110177,0.62423747,109080.0,109070.0,0.35000847]
[1756818110380,0.44088581,109080.0,109070.0,0.35208847]
[1756818110584,0.78088581,109080.0,109070.0,0.35000847]
[1756818110997,0.7912423,109080.0,109070.0,0.35000847]
[1756818111201,0.7912423,109080.0,109070.0,0.35208847]
[1756818111444,0.7912423,109080.0,109070.0,0.35503847]
[1756818111650,0.35035649,109080.0,109070.0,0.35503847]
[1756818112056,0.342,109080.0,109070.0,0.35503847]
[1756818112264,0.002,109080.0,109070.0,0.35503847]
[1756818112470,0.002,109080.0,109070.0,0.44695446]
[1756818113315,0.002,109080.0,109070.0,0.28031446]
[1756818113521,0.002,109080.0,109070.0,0.44691446]
[1756818114013,0.002,109080.0,109070.0,0.45091446]
[1756818114635,0.44088581,109090.0,109070.0,0.44691446]
[1756818114840,0.44088581,109090.0,109080.0,0.18335166]
[1756818115114,1.61530256,109100.0,109090.0,0.18333486]
[1756818115361,1.61530256,109100.0,109090.0,0.34993486]
[1756818115824,0.18333486,109090.0,109070.0,0.09491599]
[1756818116042,0.44088581,109090.0,109080.0,0.34991166]
[1756818116270,0.62422219,109090.0,109070.0,0.04374754]
[1756818116493,0.62422219,109090.0,109080.0,0.34991166]
[1756818116494,0.52333486,109090.0,109080.0,0.34991166]
[1756818116743,0.34,109090.0,109080.0,0.34991166]
[1756818117154,0.34,109090.0,109080.0,0.35494166]
[1756818117572,0.78088581,109090.0,109080.0,0.35494166]
[1756818117778,0.78188581,109090.0,109080.0,0.35494166]
[1756818118004,0.341,109090.0,109080.0,0.35494166]
[1756818118159,0.341,109090.0,109080.0,0.35286166]
[1756818118409,0.78188581,109090.0,109080.0,0.35286166]
[1756818119019,0.78188581,109090.0,109080.0,0.35494166]
[1756818119599,0.341,109090.0,109080.0,0.35494166]
[1756818119797,0.34,109090.0,109080.0,0.35494166]
[1756818120218,0.34,109090.0,109080.0,0.35694166]
[1756818120779,0.34,109090.0,109080.0,0.35594166]
[1756818121046,0.34,109090.0,109080.0,0.35590166]
[1756818121268,0.34,109090.0,109080.0,0.41182813]
[1756818121498,0.34,109090.0,109080.0,0.35790166]
[1756818122383,0.65156966,109100.0,109090.0,0.18333486]
[1756818122593,0.99156966,109100.0,109090.0,0.34785085]
[1756818122808,0.99156966,109100.0,109090.0,0.35080085]
[1756818123251,0.99156966,109100.0,109090.0,0.51728085]
[1756818123700,0.99156966,109100.0,109090.0,0.51828085]
[1756818123915,0.99156966,109100.0,109090.0,0.51928085]
[1756818124815,0.99156966,109100.0,109090.0,0.51924085]
[1756818125018,1.43245547,109100.0,109090.0,0.51924085]
[1756818125637,0.99156966,109100.0,109090.0,0.51924085]
[1756818125847,0.81465463,109100.0,109090.0,0.51924085]
[1756818126727,0.47465463,109100.0,109090.0,0.51924085]
[1756818128257,0.47465463,109100.0,109090.0,0.98106548]
[1756818128694,0.47465463,109100.0,109090.0,1.03106548]
[1756818129548,0.47465463,109100.0,109090.0,0.81462548]
[1756818129792,0.47465463,109100.0,109090.0,0.97898548]
[1756818130033,0.47465463,109100.0,109090.0,0.53809967]
[1756818130244,0.47465463,109100.0,109090.0,0.98798548]
[1756818130678,0.47465463,109100.0,109090.0,0.38073967]
[1756818131104,0.47465463,109100.0,109090.0,0.98798548]
[1756818131742,0.47465463,109100.0,109090.0,0.38073967]
[1756818131931,0.47465463,109100.0,109090.0,0.54705967]
[1756818132672,0.47465463,109100.0,109090.0,0.98794548]
[1756818133533,0.47465463,109100.0,109090.0,0.98727619]
[1756818133746,0.47465463,109100.0,109090.0,0.38073967]
[1756818133965,0.47465463,109100.0,109090.0,0.98723619]
[1756818134182,0.47465463,109100.0,109090.0,0.54701967]
[1756818134619,0.47465463,109100.0,109090.0,1.09267842]
[1756818135683,0.47465463,109100.0,109090.0,0.94701967]
[1756818135916,0.47465463,109100.0,109090.0,1.00204634]
[1756818136103,0.47465463,109100.0,109090.0,0.94701967]
[1756818136966,0.47465463,109100.0,109090.0,1.49267842]
[1756818137207,0.47465463,109100.0,109090.0,1.09267842]
[1756818137659,0.47465463,109100.0,109090.0,1.49267842]
[1756818137882,0.47465463,109100.0,109090.0,0.94701967]
[1756818138094,0.47465463,109100.0,109090.0,1.49267842]
[1756818138749,0.47465463,109100.0,109090.0,1.54267842]
[1756818139067,0.47465463,109100.0,109090.0,0.99701967]
[1756818139277,0.47465463,109100.0,109090.0,1.37639842]
[1756818139486,0.47465463,109100.0,109090.0,1.54259842]
[1756818141349,0.0002,109110.0,109100.0,0.20425687]
[1756818141557,0.0002,109110.0,109100.0,0.84183161]
[1756818141765,0.0002,109110.0,109100.0,0.84684161]
[1756818142214,0.0002,109110.0,109100.0,1.24684161]
[1756818142648,0.0002,109110.0,109100.0,1.54734161]
[1756818142861,0.0002,109110.0,109100.0,1.55034161]
[1756818143074,0.0002,109110.0,109100.0,2.11650161]
[1756818143561,1e-08,109110.0,109100.0,2.16650161]
[1756818143818,1e-08,109110.0,109100.0,2.16950161]
[1756818144693,1e-08,109110.0,109100.0,2.55950161]
[1756818144915,1e-08,109110.0,109100.0,2.56977259]
[1756818145346,1e-08,109110.0,109100.0,2.02411384]
[1756818145556,1e-08,109110.0,109100.0,2.56977259]
[1756818145768,1e-08,109110.0,109100.0,1.86927259]
[1756818145989,0.0002,109130.0,109120.0,0.74988202]
[1756818146213,0.0003295,109130.0,109120.0,1.07839801]
[1756818146420,0.0003295,109130.0,109120.0,1.08340801]
[1756818146646,0.0003295,109130.0,109120.0,0.91728801]
[1756818146859,0.0003295,109130.0,109120.0,1.08336801]
[1756818147281,0.0003295,109130.0,109120.0,1.17573081]
[1756818148324,0.0003295,109130.0,109120.0,1.17473081]
[1756818149190,0.0003295,109130.0,109120.0,1.17673081]
[1756818149831,0.0003295,109130.0,109120.0,1.17973081]
[1756818150088,0.0003295,109130.0,109120.0,1.12973081]
[1756818150287,0.0003295,109130.0,109120.0,1.52973081]
[1756818151643,1e-08,109130.0,109120.0,1.57973081]
[1756818151863,1e-08,109130.0,109120.0,1.52973081]
[1756818152093,1e-08,109130.0,109120.0,0.98407206]
[1756818152321,1e-08,109130.0,109120.0,1.57973081]
[1756818152784,1.0002,109150.0,109140.0,0.20418969]
[1756818153024,1.0002,109150.0,109140.0,1.01277443]
[1756818153254,1.0002,109150.0,109140.0,0.29906568]
[1756818153469,1.0002,109150.0,109140.0,0.46711568]
[1756818153905,1.0002,109150.0,109140.0,0.46210568]
[1756818154133,1.0002,109150.0,109140.0,0.46711568]
[1756818154593,1.0002,109150.0,109140.0,0.46310568]
[1756818155042,1.0002,109150.0,109140.0,0.46811568]
[1756818155961,1.0002,109150.0,109140.0,1.01377443]
[1756818159058,1.0002,109150.0,109140.0,0.30211568]
[1756818159323,1.0002,109150.0,109140.0,1.01369443]
[1756818159768,0.37752297,109150.0,109140.0,1.85369443]
[1756818160406,0.37752297,109150.0,109140.0,1.85269443]
[1756818160864,0.37752297,109150.0,109140.0,1.30703568]
[1756818161076,0.37752297,109150.0,109140.0,1.85669443]
[1756818161280,0.37752297,109150.0,109140.0,1.85869443]
[1756818161698,0.37752297,109150.0,109140.0,1.85669443]
[1756818161919,1e-08,109150.0,109140.0,1.85669443]
[1756818163098,1e-08,109150.0,109140.0,1.31103568]
[1756818163310,1e-08,109150.0,109140.0,1.85669443]
[1756818163523,1e-08,109150.0,109140.0,1.85969443]
[1756818164172,1e-08,109150.0,109140.0,1.85961443]
[1756818164885,1e-08,109150.0,109140.0,1.31395568]
[1756818165138,1e-08,109150.0,109140.0,1.85961443]
[1756818165368,1e-08,109150.0,109140.0,1.14811568]
[1756818165595,1e-08,109150.0,109140.0,0.44796686]
[1756818165821,1e-08,109150.0,109140.0,0.46890568]
[1756818166978,1e-08,109150.0,109140.0,0.46590568]
[1756818167206,1e-08,109150.0,109140.0,1.01656443]
[1756818167423,1e-08,109150.0,109140.0,0.30210568]
[1756818167635,1e-08,109150.0,109140.0,0.46790568]
[1756818167847,1e-08,109150.0,109140.0,0.46186568]
[1756818168058,0.35722697,109170.0,109160.0,0.18321729]
[1756818168271,1.06904254,109180.0,109170.0,0.18320051]
[1756818168510,1.06918375,109180.0,109170.0,0.34896051]
[1756818168716,0.523525,109180.0,109170.0,0.34896051]
[1756818168929,0.610015,109180.0,109170.0,0.34896051]
[1756818169132,1.15567375,109180.0,109170.0,0.34896051]
[1756818169337,0.97248996,109180.0,109170.0,0.36734354]
[1756818169764,0.42683121,109180.0,109170.0,0.36734354]
[1756818169974,0.42683121,109180.0,109170.0,0.45925953]
[1756818170183,0.00034121,109180.0,109170.0,1.0308571]
[1756818170628,1e-08,109180.0,109170.0,1.0808571]
[1756818171311,1e-08,109180.0,109170.0,1.4808571]
[1756818171527,1e-08,109180.0,109170.0,1.8708571]
[1756818171741,1e-08,109180.0,109170.0,1.33567904]
[1756818172180,0.0002,109200.0,109180.0,0.59412255]
[1756818172424,0.0002,109200.0,109190.0,0.56353252]
[1756818172642,0.0002,109200.0,109190.0,0.56624294]
[1756818172854,0.0002,109200.0,109190.0,1.51190169]
[1756818173520,0.0002,109200.0,109190.0,0.95834653]
[1756818173738,0.0002,109200.0,109190.0,1.84400528]
[1756818173975,0.0002,109200.0,109190.0,1.69666831]
[1756818174191,0.0002,109200.0,109190.0,1.15100956]
[1756818174618,0.0002,109200.0,109190.0,1.33862838]
[1756818175000,0.0002,109200.0,109190.0,0.99862838]
[1756818175199,0.0002,109200.0,109190.0,1.54428713]
[1756818175379,0.0002,109200.0,109190.0,1.59428713]
[1756818175584,0.0002,109200.0,109190.0,1.59628713]
[1756818176439,0.0002,109210.0,109200.0,0.52315018]
[1756818176599,0.0002,109210.0,109200.0,1.25035856]
[1756818176836,0.0002,109210.0,109200.0,1.25236856]
[1756818177052,1e-08,109230.0,109220.0,0.20405546]
[1756818177275,0.0004708,109230.0,109220.0,1.4777102]
[1756818177500,0.0004708,109230.0,109220.0,1.4827102]
[1756818177711,0.0004708,109230.0,109220.0,1.50109323]
[1756818178140,0.0004708,109230.0,109220.0,0.95543448]
[1756818178351,0.0004708,109230.0,109220.0,1.50109323]
[1756818178587,0.0004708,109230.0,109220.0,1.50309323]
[1756818179008,0.0004708,109230.0,109220.0,1.50299327]
[1756818179249,0.0004708,109230.0,109220.0,0.95229452]
[1756818179473,0.0004708,109230.0,109220.0,0.95429452]
[1756818179676,0.0004708,109230.0,109220.0,0.80974462]
[1756818179897,0.0004708,109230.0,109220.0,0.57534462]
[1756818180340,0.0004708,109230.0,109220.0,0.40974462]
[1756818180548,0.0004708,109230.0,109220.0,0.57534462]
[1756818180969,0.0004708,109230.0,109220.0,0.57334462]
[1756818181676,0.0004708,109230.0,109220.0,0.57134462]
[1756818182461,0.0004708,109230.0,109220.0,0.51193267]
[1756818182891,0.0004708,109230.0,109220.0,0.51693267]
[1756818183069,0.0004708,109230.0,109220.0,1.06259142]
[1756818183272,0.0004308,109230.0,109220.0,1.06259142]
[1756818183850,0.0004308,109230.0,109220.0,0.51193267]
[1756818184092,0.0004308,109230.0,109220.0,0.38825024]
[1756818184332,0.0004308,109230.0,109220.0,0.55381024]
[1756818184541,0.0004308,109230.0,109220.0,1.12540781]
[1756818185189,0.0004308,109230.0,109220.0,1.12239781]
[1756818185402,0.0004308,109230.0,109220.0,0.58074906]
[1756818185618,0.0004308,109230.0,109220.0,0.41518906]
[1756818185840,0.0004308,109230.0,109220.0,0.55481024]
[1756818186052,0.0004308,109230.0,109220.0,0.55281024]
[1756818186482,0.0004308,109230.0,109220.0,0.55381024]
[1756818186698,0.0004308,109230.0,109220.0,0.55881024]
[1756818186905,0.0004308,109230.0,109220.0,0.57974906]
[1756818187539,0.0004308,109230.0,109220.0,0.51193267]
[1756818187779,0.27002068,109230.0,109220.0,0.07144]
[1756818187991,0.0869208,109230.0,109220.0,0.23796]
[1756818188199,0.27002068,109230.0,109220.0,0.23796]
[1756818188410,0.0869208,109230.0,109220.0,0.46318585]
[1756818188867,0.0869208,109230.0,109220.0,0.46118585]
[1756818189939,0.27002068,109230.0,109220.0,0.46118585]
[1756818190161,0.0869208,109230.0,109220.0,0.46118585]
[1756818191495,0.27002068,109230.0,109220.0,0.46118585]
[1756818191715,0.27002068,109230.0,109220.0,0.11254921]
[1756818191933,0.27002068,109230.0,109220.0,0.41907664]
[1756818192351,0.27002068,109230.0,109220.0,0.23596]
[1756818192564,0.27002068,109230.0,109220.0,0.41907664]
[1756818192786,0.27002068,109230.0,109220.0,0.23596]
[1756818192999,0.27002068,109230.0,109220.0,0.41907664]
[1756818193248,0.27002068,109230.0,109220.0,0.07044]
[1756818193249,0.81468196,109230.0,109220.0,0.07044]
[1756818193481,0.1831318,109220.0,109200.0,0.25355018]
[1756818193706,0.52311664,109220.0,109210.0,0.34861341]
[1756818193909,0.98395891,109220.0,109210.0,0.34861341]
[1756818194194,0.52311664,109220.0,109210.0,0.16548]
[1756818194448,1.16707555,109220.0,109210.0,0.34861341]
[1756818194966,1.03586753,109220.0,109210.0,0.34861341]
[1756818195379,0.0869208,109230.0,109220.0,0.18311664]
[1756818195581,0.85318169,109230.0,109220.0,0.18311664]
[1756818195788,0.85318169,109230.0,109220.0,0.18211664]
[1756818196664,1.03628157,109230.0,109220.0,0.18211664]
[1756818196875,0.52353068,109230.0,109220.0,0.18211664]
[1756818197089,0.85318169,109230.0,109220.0,0.18211664]
[1756818197322,0.0004308,109230.0,109220.0,0.27924263]
[1756818198052,0.0024308,109230.0,109220.0,0.81293234]
[1756818198510,0.0024308,109230.0,109220.0,0.30018145]
[1756818198981,0.0004308,109230.0,109220.0,0.46562145]
[1756818199223,0.0014308,109230.0,109220.0,0.46562145]
[1756818199682,0.0014308,109230.0,109220.0,0.5069175]
[1756818199894,0.0004308,109230.0,109220.0,0.5069175]
[1756818200151,0.0004308,109230.0,109220.0,0.3414775]
[1756818200386,0.0004308,109230.0,109220.0,0.48597868]
[1756818200856,0.0004308,109230.0,109220.0,0.48797868]
[1756818201917,0.0004308,109230.0,109220.0,0.48997868]
[1756818203519,0.0004308,109230.0,109220.0,0.32453868]
[1756818203717,0.0004308,109230.0,109220.0,0.48993868]
[1756818204821,0.0004308,109230.0,109220.0,0.32453868]
[1756818205043,0.51318169,109230.0,109220.0,0.44343263]
[1756818205288,0.51318169,109230.0,109220.0,0.34947664]
[1756818206199,0.51318169,109230.0,109220.0,0.34747664]
[1756818206398,0.51318169,109230.0,109220.0,0.35368664]
[1756818206677,0.0004308,109230.0,109220.0,0.35368664]
[1756818206866,0.51318169,109230.0,109220.0,0.34947664]
[1756818207153,0.51318169,109230.0,109220.0,0.34847664]
[1756818207370,0.51318169,109230.0,109220.0,0.18211664]
[1756818207582,0.71592092,109230.0,109220.0,0.16536]
[1756818207844,0.18311664,109220.0,109210.0,0.18313341]
[1756818208036,0.51275089,109220.0,109210.0,0.34849341]
[1756818208491,0.69576682,109220.0,109210.0,0.34849341]
[1756818208923,0.69576682,109220.0,109200.0,0.25355018]
[1756818208924,0.18313341,109210.0,109200.0,0.25355018]
[1756818209158,0.6958843,109210.0,109200.0,0.0704]
[1756818209376,0.09244,109220.0,109210.0,0.18313341]
[1756818209590,0.80794548,109220.0,109210.0,0.18313341]
[1756818210012,0.53238884,109220.0,109210.0,0.18313341]
[1756818210221,0.0004308,109230.0,109220.0,0.18311664]
[1756818210431,0.51318169,109230.0,109220.0,0.35364664]
[1756818210657,0.53282096,109230.0,109220.0,0.35364664]
[1756818210878,0.53282096,109230.0,109220.0,0.16532]
[1756818211095,0.18312372,109220.0,109200.0,0.25354988]
[1756818211323,0.18312372,109220.0,109210.0,0.34845341]
[1756818211531,0.69587461,109220.0,109210.0,0.34845341]
[1756818211794,0.71551173,109220.0,109210.0,0.34845341]
[1756818212011,0.01963712,109220.0,109210.0,0.34845341]
[1756818212247,0.51275089,109220.0,109210.0,0.34845341]
[1756818212899,0.70788667,109230.0,109220.0,0.18311664]
[1756818212900,0.61597068,109230.0,109220.0,0.18311664]
[1756818213158,0.63560657,109230.0,109220.0,0.18311664]
[1756818213791,0.64199911,109230.0,109220.0,0.18311664]
[1756818214207,0.64199911,109230.0,109220.0,0.18211664]
[1756818214208,1.05591746,109230.0,109220.0,0.18211664]
[1756818215273,1.03628157,109230.0,109220.0,0.18211664]
[1756818215484,1.05591922,109230.0,109220.0,0.18211664]
[1756818215710,0.53281934,109230.0,109220.0,0.18419664]